Cogmind - Beta 12 @@@ ROGUE MODE // 2023.11.30 @ 00:50:45 Player: charson Result: Destroyed by P-70 Sage with Tesla Rifle Performance ------------- Evolutions (6) 3000 Regions Visited (26) 5200 Robots Destroyed (389) 1945 Value Destroyed (16670) 16670 Prototype IDs (74) 1480 Alien Tech Used (1) 200 Bonus (8446) 8446 TOTAL SCORE: 36941 Bonus ------- High Alert Combat Kills 1605 Follower Combat Kills 2945 Entered Garrisons 800 Used RIF Installer 2500 Network Hubs Disabled 400 Aligned with FarCom 300 Met Zhirov 300 A7 Reached Mainframe 300 Met R17 at Cetus 500 Friendly Fire -1204 Cogmind --------- Core Integrity 0/1150 Matter 194/300 Energy 100/100 System Corruption 42% Temperature Cool (0) Movement Hovering (131) Ox1 Location -4/Hub_04(d) Parts ------- > --- POWER (1) -------- (None) > --- PROPULSION (8) --- Antigrav System Combat Gravmag System > --- UTILITY (8) ------ High-capacity Storage Unit Improved Targeting Computer Graphene Brace > --- WEAPON (2) ------- (None) > --- INVENTORY (20) --- Gravmag Array Matter Compressor (250) Advanced Weight Redist. System Improved Heavy Armor Plating Authchip [Propulsion] Transdimensional Reconstructor Advanced Variable Charge Gun Long-range Phase Cannon Micro-nuke Launcher Improved Remote Datajack Vibroblade Peak State ------------ > --- POWER ------------ Particle Reactor > --- PROPULSION ------- Medium Treads Advanced Medium Treads Centrium Heavy Treads Centrium Heavy Treads Centrium Heavy Treads > --- UTILITY ---------- Advanced Heat Sink High-capacity Storage Unit Improved Targeting Computer Centrium Medium Armor Plating Centrium Medium Armor Plating Centrium Medium Armor Plating Centrium Medium Armor Plating Improved Hacking Suite > --- WEAPON ----------- Advanced KE Penetrator Advanced KE Penetrator > --- INVENTORY -------- Quantum Reactor Gravmag Array Antigrav System Combat Gravmag System Improved Antigrav System Combat Antigrav System Matter Compressor Advanced Weight Redist. System Centrium Medium Armor Plating Authchip [Propulsion] Relay Coupler [Sentry] Transdimensional Reconstructor Advanced Variable Charge Gun Advanced Variable Charge Gun Micro-nuke Launcher Improved Remote Datajack Field Lobotomy Kit Vibroblade Vibroblade [Rating: 152] Favorites ----------- Power Enhanced Nuclear Core Engine Ion Engine Power Core Enhanced Nuclear Core Reactor Light Antimatter Reactor Propulsion Combat Gravmag System Treads Light Treads Leg Myomer Leg Wheel Wheel Hover Unit Combat Gravmag System Flight Unit VTOL Module Utility High-capacity Storage Unit Device Structural Scanner Storage High-capacity Storage Unit Processor Targeting Computer Hackware Improved System Shield Protection Improved Light Armor Plating Weapon Great Axe Energy Gun Plasma Rifle Energy Cannon Heavy Ion Cannon Ballistic Gun Advanced KE Penetrator Ballistic Cannon Linear Accelerator Launcher Mini Grenade Launcher Special Weapon Remote Datajack Impact Weapon Powered Hammer Slashing Weapon Great Axe Piercing Weapon Lance Special Melee Weapon Advanced Datajack Build | -11 -10 -10 -10 -9 -8 -8 -8 -8 -7 -7 -7 -7 -6 -6 -5 -5 -5 -5 -4 -4 -4 -4 -4 -4 -4 -4 ------- Run | Jun Mat Min Exi Min Mat Gar Mat Sto Fac Gar Fac Gar Fac Gar Fac Upp Upp Zhi Pro Fac Was Fac Ext Cet Arc Hub Slots Evolved 12 | . . . . . 4 . . . 2 . . . 2 . 2 . . . . 2 . . . . . . Power . | . . . . . . . . . . . . . . . . . . . . . . . . . . . Propulsion 6 | . . . . . 2 . . . . . . . . . 2 . . . . 2 . . . . . . Utility 6 | . . . . . 2 . . . 2 . . . 2 . . . . . . . . . . . . . Weapon . | . . . . . . . . . . . . . . . . . . . . . . . . . . . Parts Attached 754 | 6 9 . . 3 23 25 . 23 34 8 19 80 34 42 98 43 19 13 19 59 12 51 39 16 24 55 Power 41 | 1 2 . . . 2 3 . 2 2 . 1 3 . 3 1 2 1 . 1 4 2 5 2 . 1 3 Engine 7 | 1 2 . . . . . . 2 . . . . . . . 1 . . . 1 . . . . . . Core 17 | . . . . . 2 3 . . 2 . 1 3 . 2 1 1 1 . . 1 . . . . . . Reactor 17 | . . . . . . . . . . . . . . 1 . . . . 1 2 2 5 2 . 1 3 Propulsion 146 | 2 2 . . . 6 8 . 5 10 . 8 14 9 6 22 3 . 4 5 7 3 6 5 4 4 13 Treads 28 | . . . . . . 8 . 1 . . . 3 . . 1 . . . 1 . . . . 3 4 7 Leg 4 | . . . . . . . . . . . . . . . . . . 2 2 . . . . . . . Wheel 21 | 2 2 . . . 5 . . . . . 1 6 1 . 2 . . . . . . 1 . . . 1 Hover 89 | . . . . . 1 . . 4 10 . 7 1 8 6 19 3 . 2 2 7 3 5 5 1 . 5 Flight 4 | . . . . . . . . . . . . 4 . . . . . . . . . . . . . . Utility 287 | 1 2 . . . 8 4 . 4 12 . 7 20 16 21 47 17 6 5 7 25 2 26 10 10 12 25 Device 145 | . 1 . . . 5 3 . . 6 . 6 9 8 9 30 10 3 2 3 19 . 16 3 . 2 10 Storage 9 | 1 1 . . . . . . . . . . 1 2 . 2 1 . . . . . 1 . . . . Processor 20 | . . . . . 1 1 . 1 1 . . . 1 . 1 3 1 . . 4 . 4 1 . . 1 Hackware 34 | . . . . . . . . 1 2 . 1 8 3 7 3 . . . 1 . . . . . 6 2 Protection 79 | . . . . . 2 . . 2 3 . . 2 2 5 11 3 2 3 3 2 2 5 6 10 4 12 Artifact . | . . . . . . . . . . . . . . . . . . . . . . . . . . . Weapon 280 | 2 3 . . 3 7 10 . 12 10 8 3 43 9 12 28 21 12 4 6 23 5 14 22 2 7 14 Energy Gun 38 | 1 2 . . . . 1 . 3 1 . . 5 2 2 4 . 2 . . 6 2 2 1 1 1 2 Energy Cannon 26 | . . . . . 4 3 . . . . . . . 1 2 4 5 . 2 . . . 2 . . 3 Ballistic Gun 29 | 1 . . . 1 . . . 3 . . 2 11 2 . . . . . . . . 1 . 1 5 2 Ballistic Cannon 33 | . . . . . . 3 . . . 3 1 5 . 3 5 1 2 2 2 3 . . 3 . . . Launcher 41 | . 1 . . 1 2 3 . 3 2 2 . 8 . . 3 9 2 . 1 1 . . 2 . . 1 Special Weapon 32 | . . . . . . . . 1 1 . . 5 2 4 8 . 1 2 . 2 1 . 2 . . 3 Impact Weapon 7 | . . . . . . . . . 1 . . . 3 2 1 . . . . . . . . . . . Slashing Weapon 39 | . . . . . . . . 2 4 2 . 9 . . . . . . . 2 . 7 9 . 1 3 Piercing Weapon 25 | . . . . 1 1 . . . . . . . . . 5 7 . . 1 6 2 2 . . . . Special Melee Weapon 10 | . . . . . . . . . 1 1 . . . . . . . . . 3 . 2 3 . . . Unidentified Prototypes 24 | . . . . . 1 . . 6 1 . 1 . . . 1 . . 4 . 1 2 2 . 4 . 1 Corrupted Parts 6 | . . . . . . . . . . . 1 . . . . . . . 1 . . . . 1 1 2 System Corruption 21 | . . . . . . . . . . . 7 . . . . . . . 4 . . . . 2 2 6 Parts Lost 87 | . 1 . . . . 4 1 4 2 1 4 10 . 14 4 2 1 . 4 3 . . 3 1 1 27 Power 9 | . . . . . . 1 . . . . . . . . . 1 1 . . 1 . . 1 . . 4 Propulsion 31 | . . . . . . 2 . 1 2 . 2 5 . 5 . . . . 1 . . . 1 . 1 11 Utility 39 | . . . . . . 1 1 2 . 1 1 3 . 9 3 1 . . 3 2 . . 1 1 . 10 Weapon 8 | . 1 . . . . . . 1 . . 1 2 . . 1 . . . . . . . . . . 2 Highest Loss Streak 9 | . 1 . . . . 2 1 4 2 1 2 7 . 6 2 1 1 . 4 2 . . 2 1 1 9 To Critical Strikes 1 | . . . . . . . . . . . . . . . . . . . . . . . 1 . . . Average Slot Usage (%) 87 | . 97 100 100 100 90 97 93 90 99 98 90 92 97 94 79 74 81 79 85 85 78 77 88 84 77 81 Engine 1 | . 14 14 14 14 5 . . 3 . . . . . . . 1 3 . . 3 . . . . . . Core 3 | . . . . . 3 9 9 5 6 7 7 6 6 5 5 3 1 5 4 . 1 . . . . . Reactor 1 | . . . . . . . . . . . . . . . . . . . . 1 3 5 5 5 5 4 Treads 5 | . . . . . . 22 36 25 . . . 6 . . . . . . . . . . . 12 24 23 Wheel 4 | . 28 28 28 28 29 11 . . . . 1 10 6 . . . . . . . . . . . . . Hover 17 | . . . . . . . . 9 29 30 28 9 19 25 19 21 23 22 23 29 31 30 31 13 1 . Device 14 | . 11 14 14 14 9 17 20 14 13 15 23 14 12 15 16 12 16 18 15 15 8 15 15 10 4 10 Storage 6 | . 14 14 14 14 9 9 9 9 7 7 7 5 6 6 5 8 5 5 5 5 5 5 5 5 5 5 Processor 3 | . . . . . 8 8 . 1 . . . . . . 1 8 5 8 5 6 6 1 2 5 5 5 Hackware 6 | . . . . . . . . . 7 6 3 16 25 16 11 . . . 4 5 5 2 . . 13 2 Protection 7 | . . . . . 6 1 . 2 14 15 3 2 5 9 4 6 10 6 7 5 4 4 17 19 11 15 Energy Gun 1 | . 13 14 14 10 . . 9 5 . . . 1 . 4 . . . . . . . 2 . 4 . . Energy Cannon 1 | . . . . . 3 9 9 3 . . . . . . . 1 3 . 2 . . . . . . 1 Ballistic Gun 1 | . 14 14 14 12 5 . . 2 . . 4 4 3 . . . . . . . . . . 1 1 4 Ballistic Cannon 1 | . . . . . . 7 . . . 9 . 1 . 4 1 1 1 . 8 1 . . 2 4 . . Slashing Weapon 2 | . . . . . . . . 3 6 2 7 2 3 . . . . . . . . 5 5 . 3 1 Piercing Weapon 1 | . . . . 3 7 . . . . . . . . . 2 . 3 . . 4 4 1 . . . . Naked Turns . | . . . . . . . . . . . . . . . . . . . . . . . . . . . Heaviest Build 122 | 10 18 18 18 20 37 47 46 41 37 44 38 39 51 79 91 104 100 96 97 96 111 122 121 119 99 107 Greatest Support 305 | 20 26 26 26 26 46 94 94 94 35 34 35 48 48 46 71 74 68 74 74 98 98 111 107 249 305 298 Greatest Overweight (x) 6 | 1 . . . . . 3 . 1 2 1 3 2 4 2 1 1 1 1 1 1 1 1 1 1 . 6 Average Overweight (x) . | . . . . . . . . . . . . . . . . . 1 . 1 . . . . . . . Largest Inventory Capacity 20 | 8 10 10 10 10 10 10 10 10 10 10 10 10 15 15 20 20 20 20 20 20 20 20 20 20 20 20 Average Capacity 15 | 6 9 10 10 10 10 10 10 10 10 10 10 8 12 15 16 20 20 20 20 20 20 20 20 20 20 20 Most Carried 20 | 6 10 10 10 10 10 10 10 10 10 10 10 10 15 15 20 20 20 20 20 20 20 20 20 20 20 20 Average Carried 14 | 3 8 10 9 9 9 9 10 9 9 10 9 8 12 14 15 16 19 19 19 19 19 19 19 19 19 19 Final Capacity 20 | 8 10 10 10 10 10 10 10 10 10 10 10 10 15 15 20 20 20 20 20 20 20 20 20 20 20 20 Final Carried 20 | 6 10 10 10 10 10 10 10 10 10 10 10 10 15 15 20 20 19 20 20 20 20 20 20 20 20 13 Class Distribution -------------------- 37% | Mutant 29% | Scavenger-Mutant 14% | Infiltrator-Mutant 8% | Bothacker-Mutant Dominant Class ---------------- Mutant | -10/Materials Mutant | -10/Mines Mutant | -10/Exiles Mutant | -9/Mines Mutant | -8/Materials Scavenger-Mutant | -8/Garrison Mutant | -8/Materials Mutant | -8/Storage Infiltrator-Mutant | -7/Factory Infiltrator-Mutant | -7/Garrison Infiltrator-Mutant | -7/Factory Scavenger-Mutant | -7/Garrison Bothacker-Mutant | -6/Factory Bothacker-Mutant | -6/Garrison Botlord-Mutant | -5/Factory Scavenger-Mutant | -5/Upper Caves Mutant | -5/Upper Caves Mutant | -5/Zhirov Mutant | -4/Proximity Caves Mutant | -4/Factory Mutant | -4/Waste Mutant | -4/Factory Scavenger-Mutant | -4/Extension Scavenger-Mutant | -4/Cetus Scavenger-Mutant | -4/Archives Scavenger-Mutant | -4/Hub_04(d) Resources | -11 -10 -10 -10 -9 -8 -8 -8 -8 -7 -7 -7 -7 -6 -6 -5 -5 -5 -5 -4 -4 -4 -4 -4 -4 -4 -4 ----------- Run | Jun Mat Min Exi Min Mat Gar Mat Sto Fac Gar Fac Gar Fac Gar Fac Upp Upp Zhi Pro Fac Was Fac Ext Cet Arc Hub Matter Collected 14436 | 260 184 173 . 60 399 695 5 164 584 96 732 1385 560 1454 1838 988 350 130 502 828 230 595 604 204 384 1032 Remotely 235 | . . . . . . . . . . . . . . . . 235 . . . . . . . . . . Salvage Created 19003 | . 220 . . 50 635 1153 262 400 582 101 665 833 562 1222 2084 835 426 260 675 1037 606 1751 1358 659 687 1940 Parts 849 | . 22 . . 7 44 67 15 16 48 9 45 27 25 18 78 34 16 11 21 52 10 101 45 27 32 79 Haulers Intercepted 12 | . 1 . . . . . . 1 . . 1 . 1 . 3 . . . . 3 . 1 . . . 1 Recyclers Shooed 9 | . . . . . . . 1 . 1 . . . 1 . 5 . . . . . . 1 . . . . Parts Field Recycled . | . . . . . . . . . . . . . . . . . . . . . . . . . . . Retrieved Matter . | . . . . . . . . . . . . . . . . . . . . . . . . . . . Parts Self-Destructed 54 | . . . . . . . . . . . . . . . . 20 8 11 15 . . . . . . . Prevented 18 | . . . . . . . . . . . . . . . . 15 . . 3 . . . . . . . Kills | -11 -10 -10 -10 -9 -8 -8 -8 -8 -7 -7 -7 -7 -6 -6 -5 -5 -5 -5 -4 -4 -4 -4 -4 -4 -4 -4 ------- Run | Jun Mat Min Exi Min Mat Gar Mat Sto Fac Gar Fac Gar Fac Gar Fac Upp Upp Zhi Pro Fac Was Fac Ext Cet Arc Hub Combat Hostiles Destroyed 294 | . 7 . . 3 18 30 4 7 4 7 3 15 3 43 20 22 13 . 13 8 . 22 15 10 4 23 Melee 44 | . . . . . 1 . . . 4 . 3 . 2 . 7 . 1 . . 4 . 16 5 . . 1 Guns 51 | . 4 . . . . . 2 . . . . 5 1 18 . . . . . . . 6 . 1 1 13 Cannons 103 | . . . . . 5 25 . 1 . 4 . 1 . 25 8 5 1 . 9 . . . 6 9 . 4 AOE 82 | . 3 . . 3 12 4 . 6 . 3 . 9 . . 2 14 11 . 4 4 . . 4 . . 3 Classes Destroyed 22 | . 4 . . 2 2 4 . 2 . 1 . . . 1 1 2 1 . . 1 . . 1 . . . Worker 30 | . . . . . 2 . . 1 4 . 5 . 2 . 8 . . . . 4 . . . . . 4 Builder 20 | . . . . 1 1 . . . 6 . . . 2 . 5 . . . . 1 . 2 1 . . 1 Tunneler 3 | . . . . 1 . . . . . . . . . . . . . . . 1 . 1 . . . . Hauler 12 | . 1 . . . . . . 1 . . 1 . 1 . 3 . . . . 3 . 1 . . . 1 Recycler 20 | . . . . . . . . 1 2 . 4 . 2 . 4 . . . . 2 . 1 2 . . 2 Minesweeper 1 | . . . . . . . . . . . . . . . . 1 . . . . . . . . . . Mechanic 3 | . . . . . . . . . . . . . . . . . . . . 1 . 2 . . . . Operator 14 | . . . . . . . . 1 1 1 . . . . . . . . . 1 . 1 . . 9 . Watcher 24 | . 2 . . . 3 1 1 . 2 . 2 . . . 5 . . . . 2 . 3 1 . . 2 Swarmer 76 | . 5 . . 3 7 4 . . 1 4 . 7 . 3 . 11 9 . 6 4 . 6 2 . . 4 Cutter 5 | . . . . . . 2 . . . . . . . 1 2 . . . . . . . . . . . Grunt 74 | . 2 . . . 9 11 2 7 . 2 . 2 1 . 7 7 . . 4 . . 2 6 2 . 10 Brawler 5 | . . . . . . 3 . . . . . . . . 1 . . . 1 . . . . . . . Duelist 5 | . . . . . . . . . . 1 . 2 . . . . . . 1 . . 1 . . . . Protector 2 | . . . . . . . . . . . . . . . 1 . . . . . . 1 . . . . Sentry 30 | . . . . . 2 5 2 . . . . 5 . . . 2 . . 1 . . 2 4 . 4 3 Demolisher 1 | . . . . . . . . . . . . . . . . . . . . . . . 1 . . . Specialist 4 | . . . . . . 2 . . . . . . . 2 . . . . . . . . . . . . Hunter 8 | . . . . . . . . . . . . . . . . 2 . . . . . 3 1 . . 2 Programmer 39 | . . . . . . 3 . . 3 . 3 . 2 2 10 . . . . 4 . 7 1 . . 4 Cetus Guard 8 | . . . . . . . . . . . . . . . . . . . . . . . . 8 . . Decomposer 1 | . . . . . . . . . . . . . . . . . 1 . . . . . . . . . Assembled 35 | . . . . . . . . . . . . . . 35 . . . . . . . . . . . . Surgeon 1 | . . . . . . . . . . . . . . . . . . . . . 1 . . . . . Thug 3 | . . . . . . . . . . . . . . . . . 3 . . . . . . . . . Mutant 1 | . . . . . . . . . . . . . . . . . 1 . . . . . . . . . Best Kill Streak 9 | . 3 . . 3 9 5 2 7 2 4 3 4 2 8 7 5 5 . 4 9 . 5 4 4 7 8 Combat Bots Only 8 | . 3 . . 3 8 5 1 6 1 4 1 4 1 8 3 5 5 . 4 6 . 5 4 4 1 5 Max Kills in Single Turn 4 | . 2 . . 2 3 2 1 3 1 2 1 4 1 2 3 3 3 . 4 2 1 1 3 2 1 2 Gunslinging . | . . . . . . . . . . . . . . . . . . . . . . . . . . . Exploded 4 | . 2 . . 2 3 2 . 2 . 2 . 4 . . 1 3 3 . 4 2 . . 2 . . 2 Melee 1 | . . . . . 1 . . . 1 . 1 . 1 . 1 . 1 . . 1 . 1 1 . . 1 Uniques/NPCs Destroyed . | . . . . . . . . . . . . . . . . . . . . . . . . . . . Combat | -11 -10 -10 -10 -9 -8 -8 -8 -8 -7 -7 -7 -7 -6 -6 -5 -5 -5 -5 -4 -4 -4 -4 -4 -4 -4 -4 -------- Run | Jun Mat Min Exi Min Mat Gar Mat Sto Fac Gar Fac Gar Fac Gar Fac Upp Upp Zhi Pro Fac Was Fac Ext Cet Arc Hub Damage Taken 25540 | . 394 . . 30 286 868 561 539 448 373 450 1361 136 1715 2425 1247 808 . 893 1103 . 1436 1225 86 740 8416 Core 3215 | . 158 . . 9 78 96 106 149 61 52 76 244 19 286 361 156 74 . 125 163 . 44 12 . 59 887 Absorbed by Shields 1425 | . . . . . 16 180 52 . . . . 260 . 584 54 . . . . . . . 232 47 . . Reduced by Siege Mode 145 | . . . . . . . . . . . . . . . . . . . . . . . . . . 145 Redirected to Shielding 234 | . . . . . 11 . . . . . . . . 23 . . . . 163 37 . . . . . . Regen/Repaired (Parts) 1072 | . . . . . . . . . 57 . 39 . . 165 122 . . . . 570 1 118 . . . . Core Remaining (%) 47 | 100 . . . 33 . . . 22 . . . 38 . 64 . . . . 28 . . . . . . . Volleys Fired 921 | . 36 . . 3 22 81 22 16 3 29 5 80 9 135 111 75 19 16 23 11 6 37 26 19 35 102 Largest 2 | . 2 . . 1 2 2 2 2 1 2 1 2 1 2 1 2 2 1 2 1 1 2 2 2 1 2 Hottest 240 | . 60 . . 30 128 109 146 146 30 96 48 93 30 123 113 179 179 20 154 88 20 123 154 240 80 185 Shots Fired 1334 | . 65 . . 3 27 152 35 25 3 47 7 116 9 216 112 94 22 16 45 11 6 58 29 27 35 174 Gun 498 | . 61 . . . 4 . 22 9 . . 3 71 5 90 3 . . . . 4 . 58 3 4 35 126 Cannon 621 | . . . . . 14 147 13 9 . 38 4 18 . 123 69 44 11 . 44 1 . . 22 23 . 41 Launcher 127 | . 4 . . 3 9 5 . 6 2 9 . 11 . . 5 50 11 . 1 6 . . 3 . . 2 Special 88 | . . . . . . . . 1 1 . . 16 4 3 35 . . 16 . . 6 . 1 . . 5 Kinetic 623 | . 32 . . . 4 75 . . . 38 7 75 5 123 60 18 4 . 30 1 . 21 16 23 1 90 Thermal 424 | . 29 . . . 7 66 . . . . . 14 . 90 12 22 7 12 . 4 6 37 3 4 34 77 Explosive 76 | . 4 . . 3 9 5 . 6 2 3 . 11 . . 5 5 11 . 1 6 . . 3 . . 2 Electromagnetic 141 | . . . . . 7 6 35 18 . 6 . . . . . 49 . . 14 . . . 6 . . . Robot Hit Streak 22 | . 9 . . 4 9 8 8 6 . 4 5 20 7 8 14 6 3 10 11 1 3 9 8 8 9 22 Robot Miss Streak 6 | . 5 . . . 2 3 1 2 . 4 . 3 1 6 4 3 3 1 3 5 2 4 6 1 1 3 Penetration Max 1 | . . . . . . . . . . . . . . . . . . . . . . . 1 1 . 1 Secondary Targets 1 | . . . . . . . . . . . . . . . . . . . . . . . . . . 1 Max Gunslinging Chain 1 | . . . . . . . . . . . . . . . . . . . . . . . . . . 1 Shots Hit Robots 1123 | . 36 . . 4 27 78 24 21 39 19 24 82 25 129 120 21 16 14 29 38 15 93 60 20 49 140 Core Hits 591 | . 20 . . 5 34 41 5 20 12 14 9 48 8 49 40 36 23 7 21 31 6 46 33 11 14 58 Critical Kills 26 | . . . . . . 1 . . . . . . . . 2 . . . . . . . 6 9 . 8 Critical Parts Destroyed 33 | . . . . . . . . . . . . . 1 3 5 . . . . . . . 7 5 . 12 Critical Strikes 109 | . . . . 1 2 3 . . 2 2 . 1 2 11 12 1 . 1 5 1 4 7 16 16 . 22 Burn 9 | . . . . . . . . . . . . . . 7 . . . . . . . 2 . . . . Meltdown 3 | . . . . . . 1 . . . . . . . . 1 . . . . . . . . . . 1 Destroy 49 | . . . . . . . . . . . . . . . . . . . . . . . 13 16 . 20 Blast 14 | . . . . . . 2 . . . 2 . . . 1 3 1 . . 5 . . . . . . . Smash 11 | . . . . . . . . . . . . . 2 3 6 . . . . . . . . . . . Sever 12 | . . . . . . . . . 2 . . 1 . . . . . 1 . . 1 3 3 . . 1 Impale 11 | . . . . 1 2 . . . . . . . . . 2 . . . . 1 3 2 . . . . Melee Attacks 653 | . . . . 2 32 . . 9 73 9 41 24 27 23 86 19 9 . 3 76 12 112 59 . 21 16 Impact 85 | . . . . . . . . . . . . . 9 23 53 . . . . . . . . . . . Slashing 345 | . . . . . . . . 9 71 9 41 24 18 . . . . . . . . 86 50 . 21 16 Piercing 210 | . . . . 2 32 . . . . . . . . . 33 19 9 . 3 75 12 25 . . . . Sneak Attacks 111 | . . . . 2 3 . . . 17 . 10 . 11 . 14 2 1 . . 14 2 11 12 . 12 . Combat Hostiles 1 | . . . . . . . . . . . . . . . . . . . . . . . 1 . . . Follow-up Attacks 15 | . . . . . . . . . . . . . . . . . . . . . . 6 7 . . 2 Damage Inflicted 49619 | . 523 . . 327 1670 2351 531 1310 2298 942 1299 2596 1218 4634 5067 2322 1868 206 1490 2402 803 4147 3076 465 2816 5258 Guns 8148 | . 341 . . . 21 . 395 195 . . 20 1012 82 940 71 . . . . . . 1044 . 91 872 3064 Cannons 10812 | . . . . . 276 2147 136 122 . 540 . 303 . 1878 1572 699 338 . 1017 . . . 380 374 . 1030 Explosions 8694 | . 182 . . 212 1000 204 . 877 . 402 . 734 . . 530 1496 1083 . 281 481 . . 758 . . 454 Melee 21693 | . . . . 115 373 . . 116 2298 . 1279 547 1136 1816 2894 127 447 . 192 1921 741 3103 1938 . 1944 706 Ramming 4 | . . . . . . . . . . . . . . . . . . . . . . . . . . 4 Kinetic 10686 | . 157 . . . 21 933 . . . 540 20 1178 82 1878 1376 346 141 . 766 . . 438 286 374 . 2150 Thermal 7192 | . 184 . . . 109 1055 . 93 . 22 . 137 . 940 267 407 197 206 . . 62 606 . 91 872 1944 Explosive 7944 | . 182 . . 212 1000 204 . 784 . 281 . 734 . . 530 960 1083 . 281 481 . . 758 . . 454 Electromagnetic 2100 | . . . . . 167 159 531 317 . 99 . . . . . 482 . . 251 . . . 94 . . . Impact 4076 | . . . . . . . . . . . . . 145 1816 2115 . . . . . . . . . . . Slashing 12093 | . . . . . . . . 116 2298 . 1279 547 991 . . . . . . . . 2274 1938 . 1944 706 Piercing 5524 | . . . . 115 373 . . . . . . . . . 779 127 447 . 192 1921 741 829 . . . . Highest Corruption 41 | . . . . . . 3 3 12 1 2 8 7 . 17 7 1 1 1 5 2 . 1 1 3 4 41 Average Corruption 4 | . . . . . . 2 3 4 1 1 5 7 . 13 3 1 1 1 1 1 . 1 1 2 2 8 Corruption Purged 34 | . . . . . . . . . 1 . 5 . . . 14 . . . . 2 . . . . 5 7 Corruption Blocked . | . . . . . . . . . . . . . . . . . . . . . . . . . . . Effects 366 | . . . . . . 28 10 18 6 3 28 66 . 83 34 7 7 2 9 1 . 2 7 5 8 42 Message Errors 81 | . . . . . . 8 . 1 . . 6 18 . 17 9 1 2 1 3 . . 2 3 2 . 8 Matter Fused 91 | . . . . . . 5 2 9 3 . 4 19 . 15 8 1 2 1 3 . . . 1 . 1 17 Heat Flow Errors 41 | . . . . . . 3 2 4 2 1 3 6 . 7 1 1 . . 1 . . . 1 2 2 5 Energy Discharges 46 | . . . . . . 4 4 2 . 1 5 5 . 13 2 2 . . 2 . . . 2 . 2 2 Parts Rejected 8 | . . . . . . . . . . . . 1 . 1 3 1 . . . . . . . . . 2 Parts Fused 6 | . . . . . . . 1 . . . 1 . . 1 2 . . . . . . . . 1 . . Data Loss (minor) 44 | . . . . . . 6 1 1 1 . 1 7 . 14 6 . 2 . . . . . . . 2 3 Data Loss (major) 23 | . . . . . . 2 . . . . 5 7 . 5 1 . 1 . . 1 . . . . . 1 Misfires 10 | . . . . . . . . . . 1 2 1 . 4 1 1 . . . . . . . . . . Alerts 6 | . . . . . . . . . . . 1 1 . 2 1 . . . . . . . . . . 1 Misdirections 3 | . . . . . . . . 1 . . . . . . . . . . . . . . . . . 2 Weapon Failures 7 | . . . . . . . . . . . . 1 . 4 . . . . . . . . . . 1 1 Overload Shots 1 | . . . . . . . . . . . . . . . . . . . . . . . . 1 . . Overflow Damage 5601 | . 34 . . 80 25 41 . 43 730 35 232 29 188 689 967 85 123 . 42 187 123 624 177 . 1036 111 Projectiles 306 | . . . . . . 41 . 12 . 7 . . . 44 41 50 16 . 42 . . . . . . 53 Explosions 251 | . 34 . . . 25 . . 10 . 28 . 29 . . 24 35 33 . . 8 . . . . . 25 Melee 5044 | . . . . 80 . . . 21 730 . 232 . 188 645 902 . 74 . . 179 123 624 177 . 1036 33 Knockbacks 49 | . . . . . . 9 . . . 7 . 3 1 10 11 2 1 . 4 . . . . 1 . . Impact 5 | . . . . . . . . . . . . . 1 . 4 . . . . . . . . . . . Kinetic 41 | . . . . . . 9 . . . 7 . 2 . 9 6 2 1 . 4 . . . . 1 . . Secondary 3 | . . . . . . . . . . . . 1 . 1 1 . . . . . . . . . . . Self-Inflicted Damage 656 | . 41 . . . 3 21 . . . 42 . 91 . . 161 161 45 . . 89 . . . . . 2 Shots 22 | . 2 . . . 1 1 . . . 1 . 2 . . 3 7 2 . . 3 . . . . . . Rammed 1 | . . . . . . . . . . . . . . . . . . . . . . . . . . 1 Targets Rammed 1 | . . . . . . . . . . . . . . . . . . . . . . . . . . 1 Kicked . | . . . . . . . . . . . . . . . . . . . . . . . . . . . Crushed . | . . . . . . . . . . . . . . . . . . . . . . . . . . . Highest Temperature 377 | . 216 . . . 306 377 196 269 280 275 238 370 14 143 312 202 171 . 199 303 41 351 271 191 186 275 Average Temperature 89 | . 124 . . . 123 101 94 87 130 114 85 146 8 37 43 58 63 . 115 114 15 130 62 55 50 103 Received Heat Transfer 3473 | . 165 . . . 93 309 208 45 51 111 9 312 6 125 277 207 126 . 172 . . 87 195 18 108 849 Effects 12 | . . . . . . 1 . . . . . 5 . . . . . . . 2 . 4 . . . . Shutdowns 1 | . . . . . . . . . . . . 1 . . . . . . . . . . . . . . Energy Bleed 5 | . . . . . . . . . . . . . . . . . . . . 2 . 3 . . . . Interference 2 | . . . . . . . . . . . . 2 . . . . . . . . . . . . . . Short Circuit 2 | . . . . . . 1 . . . . . . . . . . . . . . . 1 . . . . Damage (minor) 2 | . . . . . . . . . . . . 2 . . . . . . . . . . . . . . Siege Activations 4 | . . . . . . . . . . . . . . . . . . . . . . . . . . 4 Total Turns 150 | . . . . . . . . . . . . . . . . . . . . . . . . . . 150 Longest Duration 52 | . . . . . . . . . . . . . . . . . . . . . . . . . . 52 Robots Corrupted 5 | . . . . . . . 2 . . . . . . . . 3 . . . . . . . . . . Combat Hostiles 5 | . . . . . . . 2 . . . . . . . . 3 . . . . . . . . . . Parts Fried 36 | . . . . . . 1 4 1 . . . . . 8 17 4 . . . . . . . 1 . . Impact Corruptions 44 | . . . . . . . . . . . . . 4 12 28 . . . . . . . . . . . Robots Melted 7 | . . . . . . 1 . . . . . . . . 1 . . . . . . . . . 3 2 Combat Hostiles 7 | . . . . . . 1 . . . . . . . . 1 . . . . . . . . . 3 2 Parts Melted 29 | . 1 . . . . 3 . . . . . 1 . . 4 1 . . . . . 5 . . 5 9 Heat Transferred 10374 | . 425 . . . 148 1332 . 100 . 50 . 333 . 2712 298 333 185 295 . . 148 795 . 111 1110 1999 Parts Sabotaged . | . . . . . . . . . . . . . . . . . . . . . . . . . . . Parts Stolen . | . . . . . . . . . . . . . . . . . . . . . . . . . . . Parts Stripped . | . . . . . . . . . . . . . . . . . . . . . . . . . . . Power Chain Reactions 4 | . . . . . . . . 1 . 2 . . . . . 1 . . . . . . . . . . Missiles Intercepted . | . . . . . . . . . . . . . . . . . . . . . . . . . . . Alert | -11 -10 -10 -10 -9 -8 -8 -8 -8 -7 -7 -7 -7 -6 -6 -5 -5 -5 -5 -4 -4 -4 -4 -4 -4 -4 -4 ------- Run | Jun Mat Min Exi Min Mat Gar Mat Sto Fac Gar Fac Gar Fac Gar Fac Upp Upp Zhi Pro Fac Was Fac Ext Cet Arc Hub Peak Influence 1946 | . 196 10 . 97 348 1946 1175 437 361 595 362 784 460 994 626 . . . . 268 93 466 878 802 420 339 Initial 948 | . . 10 . . 37 171 948 417 144 193 312 156 411 65 521 . . . . . 93 65 151 408 320 . Average 355 | . 70 10 . 71 103 994 1065 221 233 434 238 498 229 406 378 . . . . 112 93 305 502 670 222 147 Maximum Alert Level 5 | . . . . . 1 5 4 2 1 2 1 3 2 3 2 . . . . 1 . 2 3 3 2 1 Low Security (%) 33 | 100 100 100 . 100 87 2 . 26 29 2 34 8 52 38 2 . . . . 81 100 6 14 . 33 58 Level 1 37 | . . . . . 12 5 . 70 70 37 65 22 23 21 61 . . . . 18 . 79 15 . 58 41 Level 2 16 | . . . . . . 23 . 3 . 59 . 52 23 14 35 . . . . . . 14 46 64 7 . Level 3 7 | . . . . . . 31 51 . . . . 16 . 24 . . . . . . . . 23 35 . . Level 4 3 | . . . . . . 24 48 . . . . . . . . . . . . . . . . . . . Level 5 1 | . . . . . . 13 . . . . . . . . . . . . . . . . . . . . High Security . | . . . . . . . . . . . . . . . . . . . . . . . . . . . Max Security . | . . . . . . . . . . . . . . . . . . . . . . . . . . . Squads Dispatched 77 | . 2 . . . 2 . 1 2 13 . 6 . 5 . 14 . . . . 5 . 11 5 . . 11 Investigation 18 | . . . . . . . . . 3 . 1 . 1 . 4 . . . . 1 . 5 2 . . 1 Extermination 28 | . . . . . . . . . 5 . 3 . 4 . 5 . . . . 3 . 4 . . . 4 Reinforcement 20 | . 2 . . . 1 . 1 2 2 . 2 . . . 4 . . . . 1 . 1 1 . . 3 Assault 4 | . . . . . . . . . . . . . . . 1 . . . . . . 1 2 . . . Garrison 7 | . . . . . 1 . . . 3 . . . . . . . . . . . . . . . . 3 Intercept . | . . . . . . . . . . . . . . . . . . . . . . . . . . . Searches Triggered 2 | . . . . . . . . . . . . . . . . . . . . . . 2 . . . . Construction Impeded 3 | . . . . . 1 . . 1 . . . . . . 1 . . . . . . . . . . . Haulers Reinforced 2 | . . . . . . . . . . . 1 . . . . . . . . . . . . . . 1 Active Scanning Responses . | . . . . . . . . . . . . . . . . . . . . . . . . . . . Cargo Convoy Interrupts 1 | . . . . . . . . . 1 . . . . . . . . . . . . . . . . . Stealth | -11 -10 -10 -10 -9 -8 -8 -8 -8 -7 -7 -7 -7 -6 -6 -5 -5 -5 -5 -4 -4 -4 -4 -4 -4 -4 -4 --------- Run | Jun Mat Min Exi Min Mat Gar Mat Sto Fac Gar Fac Gar Fac Gar Fac Upp Upp Zhi Pro Fac Was Fac Ext Cet Arc Hub Distress Signals 42 | . 1 . . . 4 . . 3 6 . 1 . . . 5 . . . . 4 . 7 3 2 . 6 Communications Jammed 18 | . . . . . . . . . . . 1 . 1 . 16 . . . . . . . . . . . Distress Signals 17 | . . . . . . . . . . . 1 . . . 16 . . . . . . . . . . . Times Spotted 638 | . 16 . . 3 23 33 10 17 33 17 15 25 8 71 78 42 8 . 13 24 . 76 43 12 20 51 Peak Tracking Total 10 | . 4 . . 3 6 5 3 9 6 9 3 4 2 6 9 6 5 . 5 5 . 7 10 6 1 9 Tactical Retreats 102 | . 1 . . . 2 2 6 1 11 3 5 2 . 12 15 21 . . . 4 . 11 3 1 . 2 Traps | -11 -10 -10 -10 -9 -8 -8 -8 -8 -7 -7 -7 -7 -6 -6 -5 -5 -5 -5 -4 -4 -4 -4 -4 -4 -4 -4 ------- Run | Jun Mat Min Exi Min Mat Gar Mat Sto Fac Gar Fac Gar Fac Gar Fac Upp Upp Zhi Pro Fac Was Fac Ext Cet Arc Hub Traps Triggered 46 | . 1 . . . 1 7 . 3 4 2 3 7 . 4 2 . . . . 2 . 6 3 . . 1 Indirectly . | . . . . . . . . . . . . . . . . . . . . . . . . . . . Trap Hack Attempts 45 | . . . . . . . . . . 8 . . . . . . . . . 30 . 7 . . . . Triggered . | . . . . . . . . . . . . . . . . . . . . . . . . . . . Disarmed 4 | . . . . . . . . . . . . . . . . . . . . . . 4 . . . . Reprogrammed 7 | . . . . . . . . . . 2 . . . . . . . . . 4 . 1 . . . . Reused 10 | . . . . . . . . . . . . . . . . 7 . . . 2 . 1 . . . . Traps Extracted . | . . . . . . . . . . . . . . . . . . . . . . . . . . . Installed 8 | . . . . . . . . . . . . . . . . 8 . . . . . . . . . . Triggered 12 | . . . . . . . . . 1 . . . . . 1 7 . . . 2 . 1 . . . . Most Traps Carried 7 | . . . . . . . . . . . . . . . . 7 . . . . . . . . . . Machines | -11 -10 -10 -10 -9 -8 -8 -8 -8 -7 -7 -7 -7 -6 -6 -5 -5 -5 -5 -4 -4 -4 -4 -4 -4 -4 -4 ---------- Run | Jun Mat Min Exi Min Mat Gar Mat Sto Fac Gar Fac Gar Fac Gar Fac Upp Upp Zhi Pro Fac Was Fac Ext Cet Arc Hub Machines Disabled 51 | . . . . . 1 4 . 3 . 3 1 4 . 4 7 4 1 . . . . 5 3 2 . 9 Max in Single Turn 3 | . . . . . 1 1 . 1 . 2 1 1 . 1 1 1 1 . . . . 1 . 1 . 3 Garrison Access 4 | . . . . . . . . . . . . . . . 1 . . . . 2 . 1 . . . . Garrison Relay 8 | . . . . . . 2 . . . . . 3 . 3 . . . . . . . . . . . . Phase Generator 1 | . . . . . . . . . . 1 . . . . . . . . . . . . . . . . Network Hub 2 | . . . . . . . . . . . . . . . . . . . . . . . . . . 2 Machines Repaired . | . . . . . . . . . . . . . . . . . . . . . . . . . . . Machines Sabotaged . | . . . . . . . . . . . . . . . . . . . . . . . . . . . Overloaded Fab Kills . | . . . . . . . . . . . . . . . . . . . . . . . . . . . Hacking | -11 -10 -10 -10 -9 -8 -8 -8 -8 -7 -7 -7 -7 -6 -6 -5 -5 -5 -5 -4 -4 -4 -4 -4 -4 -4 -4 --------- Run | Jun Mat Min Exi Min Mat Gar Mat Sto Fac Gar Fac Gar Fac Gar Fac Upp Upp Zhi Pro Fac Was Fac Ext Cet Arc Hub Machines Accessed 168 | . 7 . 1 . 6 3 1 7 24 . 11 3 10 3 25 . 1 9 . 18 . 18 7 2 1 11 Terminals 98 | . 5 . . . 4 3 1 6 15 . 4 3 5 3 12 . . . . 9 . 10 7 2 . 9 Fabricators 15 | . . . . . . . . . 3 . 3 . 2 . 4 . . . . 1 . 2 . . . . Repair Stations 10 | . . . . . . . . . 1 . 1 . . . 4 . . . . 3 . 1 . . . . Recycling Units 11 | . 2 . . . . . . . 1 . 1 . 1 . 2 . . . . 2 . 2 . . . . Scanalyzers 10 | . . . . . 1 . . . 3 . 1 . 1 . 1 . . . . 1 . 2 . . . . Garrison Access 12 | . . . . . 1 . . 1 1 . 1 . 1 . 2 . . . . 2 . 1 . . . 2 Total Hacks 489 | . 16 . 1 . 19 5 1 17 79 . 22 4 24 4 72 . 1 48 . 55 . 49 17 4 25 26 Successful 275 | . 7 . 1 . 10 2 . 8 39 . 10 2 9 3 37 . 1 48 . 34 . 26 3 3 25 7 Failed 213 | . 8 . . . 9 3 1 9 40 . 12 2 15 1 35 . . . . 21 . 23 14 1 . 19 Catastrophic 49 | . . . . . 3 1 1 2 13 . 2 1 4 1 7 . . . . 6 . 5 3 . . . Database Lockouts 1 | . 1 . . . . . . . . . . . . . . . . . . . . . . . . . Manual 204 | . 13 . 1 . 8 . 1 7 41 . 5 . 13 . 39 . . . . 31 . 25 4 1 . 15 Terminals 266 | . 13 . . . 14 5 1 16 55 . 10 4 13 4 35 . . . . 27 . 24 17 4 . 24 Fabricators 38 | . . . . . . . . . 5 . 5 . 7 . 11 . . . . 4 . 6 . . . . Repair Stations 32 | . . . . . . . . . 2 . 3 . . . 11 . . . . 13 . 3 . . . . Recycling Units 30 | . 3 . . . . . . . 2 . 2 . 2 . 7 . . . . 6 . 8 . . . . Scanalyzers 32 | . . . . . 3 . . . 14 . 1 . 1 . 6 . . . . 2 . 5 . . . . Garrison Access 16 | . . . . . 2 . . 1 1 . 1 . 1 . 2 . . . . 3 . 3 . . . 2 Terminal Hacks 136 | . 3 . 1 . 4 2 . 5 13 . 3 2 1 3 6 . 1 48 . 5 . 6 3 3 25 2 Record 65 | . . . . . . . . . 1 . . . . . . . . 36 . . . . . 3 25 . Part Schematic 5 | . . . . . . . . . 1 . . . . . . . . 4 . . . . . . . . Robot Schematic 2 | . . . . . . . . . 2 . . . . . . . . . . . . . . . . . Robot Analysis 7 | . 1 . . . 1 . . . 1 . . . . . . . . 4 . . . . . . . . Prototype ID Bank 7 | . 1 . . . 1 . . 1 . . . . . . . . . 4 . . . . . . . . Open Door 5 | . . . . . . 1 . . . . . . . . . . 1 . . 1 . 1 1 . . . Open DSF 1 | . . . . . . . . . . . 1 . . . . . . . . . . . . . . . Branch Access Points 4 | . . . . . . . . . 1 . . . . . 1 . . . . 1 . . . . . 1 Emergency Access Points 3 | . . . . . . 1 . . . . . 1 . 1 . . . . . . . . . . . . Machine Index 1 | . . . . . . . . . 1 . . . . . . . . . . . . . . . . . Terminal Index 6 | . . . . . 1 . . . 1 . . . . . 1 . . . . 1 . 1 . . . 1 Garrison Index 2 | . . . . . . . . . . . 1 . . . 1 . . . . . . . . . . . Unreport Threat 9 | . 1 . . . . . . 3 . . . . . . 2 . . . . 1 . 1 1 . . . Locate Traps 2 | . . . . . . . . . . . 1 . . . . . . . . . . . 1 . . . Disarm Traps 1 | . . . . . . . . . . . . . . . . . . . . . . 1 . . . . Recall Investigation 1 | . . . . . . . . . 1 . . . . . . . . . . . . . . . . . Recall Extermination 2 | . . . . . . . . . 2 . . . . . . . . . . . . . . . . . Hauler Manifests 2 | . . . . . 1 . . . . . . . . . . . . . . . . 1 . . . . Registered Components 1 | . . . . . . . . . 1 . . . . . . . . . . . . . . . . . Zone Layout 6 | . . . . . . . . 1 1 . . . 1 . 1 . . . . 1 . 1 . . . . Garrison Registry 1 | . . . . . . . . . . . . 1 . . . . . . . . . . . . . . Patrol Navigation 1 | . . . . . . . . . . . . . . 1 . . . . . . . . . . . . Security Stations 1 | . . . . . . . . . . . . . . 1 . . . . . . . . . . . . EX-Prototype ID Bank 1 | . . . 1 . . . . . . . . . . . . . . . . . . . . . . . Fabricator Hacks 17 | . . . . . . . . . 3 . 1 . 3 . 6 . . . . 1 . 3 . . . . Network Status 4 | . . . . . . . . . 3 . . . . . . . . . . . . 1 . . . . Load Schematic 9 | . . . . . . . . . . . . . 2 . 4 . . . . 1 . 2 . . . . Build 4 | . . . . . . . . . . . 1 . 1 . 2 . . . . . . . . . . . Repair Station Hacks 22 | . . . . . . . . . 2 . 2 . . . 5 . . . . 11 . 2 . . . . Scan Component 13 | . . . . . . . . . 1 . 1 . . . 4 . . . . 6 . 1 . . . . Repair 9 | . . . . . . . . . 1 . 1 . . . 1 . . . . 5 . 1 . . . . Recycling Unit Hacks 3 | . 1 . . . . . . . . . 1 . . . . . . . . . . 1 . . . . Retrieve Matter 1 | . . . . . . . . . . . 1 . . . . . . . . . . . . . . . Retrieve Components 2 | . 1 . . . . . . . . . . . . . . . . . . . . 1 . . . . Scanalyzer 24 | . . . . . 3 . . . 12 . . . . . 5 . . . . 2 . 2 . . . . Insert Component 10 | . . . . . 1 . . . 4 . . . . . 2 . . . . 1 . 2 . . . . Analyze 14 | . . . . . 2 . . . 8 . . . . . 3 . . . . 1 . . . . . . Garrison Access Hacks 11 | . . . . . 1 . . 1 1 . 1 . 1 . 2 . . . . 3 . 1 . . . . Unlock Access 6 | . . . . . 1 . . 1 1 . 1 . 1 . 1 . . . . . . . . . . . Seal Access 3 | . . . . . . . . . . . . . . . 1 . . . . 2 . . . . . . Coupler Status 2 | . . . . . . . . . . . . . . . . . . . . 1 . 1 . . . . Unauthorized Hacks 62 | . 3 . . . 2 . . 2 8 . 2 . 4 . 13 . . . . 12 . 11 . . . 5 Terminals 39 | . 3 . . . 2 . . 2 7 . . . 3 . 7 . . . . 9 . 3 . . . 3 Track 3 | . . . . . 1 . . . . . . . . . 1 . . . . 1 . . . . . . Assimilate 10 | . . . . . . . . . 3 . . . . . 2 . . . . 3 . 1 . . . 1 Botnet 19 | . 3 . . . 1 . . 1 3 . . . 1 . 2 . . . . 4 . 2 . . . 2 Disrupt 2 | . . . . . . . . 1 . . . . . . 1 . . . . . . . . . . . Operators 5 | . . . . . . . . . 1 . . . 2 . 1 . . . . 1 . . . . . . Fabricators 9 | . . . . . . . . . 1 . 2 . 1 . 3 . . . . . . 2 . . . . Prioritize 1 | . . . . . . . . . . . . . . . 1 . . . . . . . . . . . Liberate 2 | . . . . . . . . . . . 2 . . . . . . . . . . . . . . . Download 2 | . . . . . . . . . 1 . . . . . . . . . . . . 1 . . . . Recompile 4 | . . . . . . . . . . . . . 1 . 2 . . . . . . 1 . . . . Repair Stations . | . . . . . . . . . . . . . . . . . . . . . . . . . . . Recycling Units 11 | . . . . . . . . . . . . . . . 3 . . . . 3 . 5 . . . . Monitor 1 | . . . . . . . . . . . . . . . . . . . . . . 1 . . . . Reject 4 | . . . . . . . . . . . . . . . 1 . . . . 1 . 2 . . . . Mask 6 | . . . . . . . . . . . . . . . 2 . . . . 2 . 2 . . . . Scanalyzers . | . . . . . . . . . . . . . . . . . . . . . . . . . . . Garrison Access 3 | . . . . . . . . . . . . . . . . . . . . . . 1 . . . 2 Reprogram 2 | . . . . . . . . . . . . . . . . . . . . . . . . . . 2 Eject 1 | . . . . . . . . . . . . . . . . . . . . . . 1 . . . . Data Cores Recovered . | . . . . . . . . . . . . . . . . . . . . . . . . . . . Used . | . . . . . . . . . . . . . . . . . . . . . . . . . . . Hacking Detections 132 | . 6 . . . 6 3 1 6 22 . 8 3 9 2 21 . . . . 14 . 14 6 2 . 9 Full Trace Events 13 | . 1 . . . . . . 1 2 . 1 . . 1 2 . . . . 1 . 2 2 . . . Feedback Events 3 | . . . . . . . . . 1 . 1 . . 1 . . . . . . . . . . . . Corruption 3 | . . . . . . . . . 1 . 1 . . 1 . . . . . . . . . . . . Feedback Blocked . | . . . . . . . . . . . . . . . . . . . . . . . . . . . Robot Schematics Acquired 2 | . . . . . . . . . 2 . . . . . . . . . . . . . . . . . Robots Built 3 | . . . . . . . . . . . . . . . 3 . . . . . . . . . . . Authchips 1 | . . . . . . . . . . . . . . . 1 . . . . . . . . . . . Time 67 | . . . . . . . . . . . . . . . 67 . . . . . . . . . . . Total Robot Build Rating 12 | . . . . . . . . . . . . . . . 12 . . . . . . . . . . . Part Schematics Acquired 13 | . . . . . 1 . . . 5 . . . . . 2 . . 4 . 1 . . . . . . Parts Built 4 | . . . . . . . . . . . 2 . 1 . 1 . . . . . . . . . . . Authchips 2 | . . . . . . . . . . . . . 1 . 1 . . . . . . . . . . . Time 273 | . . . . . . . . . . . 117 . 28 . 128 . . . . . . . . . . . Total Part Build Rating 26 | . . . . . . . . . . . 14 . 4 . 8 . . . . . . . . . . . Parts Repaired 9 | . . . . . . . . . 1 . 1 . . . 1 . . . . 5 . 1 . . . . Time 398 | . . . . . . . . . 30 . 22 . . . 50 . . . . 280 . 16 . . . . Parts Recycled . | . . . . . . . . . . . . . . . . . . . . . . . . . . . Recycled Matter . | . . . . . . . . . . . . . . . . . . . . . . . . . . . Retrieved Matter . | . . . . . . . . . . . . . . . . . . . . . . . . . . . Retrieved Components 13 | . 3 . . . . . . . . . . . . . . . . . . . . 10 . . . . Parts Scanalyzed 8 | . . . . . 1 . . . 4 . . . . . 2 . . . . 1 . . . . . . Part Schematics Acquired 8 | . . . . . 1 . . . 4 . . . . . 2 . . . . 1 . . . . . . Parts Damaged 1 | . . . . . . . . . 1 . . . . . . . . . . . . . . . . . Bothacking | -11 -10 -10 -10 -9 -8 -8 -8 -8 -7 -7 -7 -7 -6 -6 -5 -5 -5 -5 -4 -4 -4 -4 -4 -4 -4 -4 ------------ Run | Jun Mat Min Exi Min Mat Gar Mat Sto Fac Gar Fac Gar Fac Gar Fac Upp Upp Zhi Pro Fac Was Fac Ext Cet Arc Hub Used RIF Installer 5 | . . . . . . 1 . . . 1 . 2 . 1 . . . . . . . . . . . . Hotswap 1 | . . . . . . . . . . . . 1 . . . . . . . . . . . . . . Threat Obfuscator 1 | . . . . . . . . . . . . 1 . . . . . . . . . . . . . . Signal Jammer 1 | . . . . . . . . . . 1 . . . . . . . . . . . . . . . . Autoassimilate 1 | . . . . . . . . . . . . . . 1 . . . . . . . . . . . . Robots Hacked 43 | . . . . . . . . . 2 . . 9 4 3 20 . . 3 . 1 . . . . . 1 Non-combat 5 | . . . . . . . . . . . . . 1 . 3 . . . . 1 . . . . . . Combat 38 | . . . . . . . . . 2 . . 9 3 3 17 . . 3 . . . . . . . 1 Autoassimilated 2 | . . . . . . . . . . . . . . 1 1 . . . . . . . . . . . Robot Hacks Applied 43 | . . . . . . . . . 2 . . 9 4 2 21 . . 3 . 1 . . . . . 1 parse_system 3 | . . . . . . . . . . . . . . . . . . 3 . . . . . . . . ignore_repairs 1 | . . . . . . . . . . . . . . . . . . . . 1 . . . . . . purge_threat 2 | . . . . . . . . . . . . . . . 2 . . . . . . . . . . . reprogram_traps 1 | . . . . . . . . . . . . . . . 1 . . . . . . . . . . . reboot_system 1 | . . . . . . . . . . . . 1 . . . . . . . . . . . . . . overwrite_iff 9 | . . . . . . . . . . . . 1 . . 8 . . . . . . . . . . . streamctrl_high 6 | . . . . . . . . . 2 . . 1 . . 3 . . . . . . . . . . . formatsys_low 3 | . . . . . . . . . . . . . 1 . 2 . . . . . . . . . . . formatsys_high 17 | . . . . . . . . . . . . 6 3 2 5 . . . . . . . . . . 1 Relay Couplers Released 35 | . . . . . . 7 . . . . . 11 . 14 . . . . . . . 3 . . . . Ejected 3 | . . . . . . . . . . . . . . . . . . . . . . 3 . . . . Machine Destruction 32 | . . . . . . 7 . . . . . 11 . 14 . . . . . . . . . . . . Attached 19 | . . . . . . . . . 1 . . 8 1 7 1 . . . . . . . . . . 1 Fabnet Peak Effective % . | . . . . . . . . . . . . . . . . . . . . . . . . . . . Robots Rewired 8 | . . . . . . . . . 1 . . . . . . . . . . . . . 7 . . . Allies Hacked 4 | . . . . . . . . . . . . . 1 . 3 . . . . . . . . . . . Hacks Repelled . | . . . . . . . . . . . . . . . . . . . . . . . . . . . Allies | -11 -10 -10 -10 -9 -8 -8 -8 -8 -7 -7 -7 -7 -6 -6 -5 -5 -5 -5 -4 -4 -4 -4 -4 -4 -4 -4 -------- Run | Jun Mat Min Exi Min Mat Gar Mat Sto Fac Gar Fac Gar Fac Gar Fac Upp Upp Zhi Pro Fac Was Fac Ext Cet Arc Hub Total Allies 87 | . . . . . . 2 . 1 6 . . 8 4 5 23 . . . . 2 20 . 10 . . 6 Largest Group 20 | . . . . . . 2 . 1 3 2 . 2 4 4 6 . . . . 1 20 18 6 3 2 3 Highest-Rated Group 726 | . . . . . . 64 . 21 63 36 . 48 113 198 200 . . . . 26 726 667 418 251 197 231 Highest-Rated Ally 159 | . . . . . . 39 . 21 29 26 . 32 32 95 49 . . . . 26 50 50 159 159 151 137 Total Orders 59 | . . . . . . . . . . 6 . 1 19 16 6 1 . . . 6 . . 2 . . 2 STAY 35 | . . . . . . . . . . 3 . 1 14 9 3 . . . . 4 . . 1 . . . FOLLOW 15 | . . . . . . . . . . 3 . . 5 2 2 . . . . 2 . . 1 . . . AID 5 | . . . . . . . . . . . . . . 5 . . . . . . . . . . . . EXPLORE 4 | . . . . . . . . . . . . . . . 1 1 . . . . . . . . . 2 Ally Attacks 543 | . . . . . . 10 . 13 44 . . 16 19 74 88 . . . . . . 89 125 42 3 20 Total Damage 14857 | . . . . . . 195 . 302 714 . . 218 541 1723 2046 . . . . . . 2790 3460 1486 126 1256 Kills 101 | . . . . . . 3 . 4 8 . . 3 3 15 11 . . . . . . 14 27 6 . 7 Allies Corrupted 4 | . . . . . . . . . . . . . . . 3 . . . . . . . . . . 1 Allies Melted 1 | . . . . . . 1 . . . . . . . . . . . . . . . . . . . . Field Lobotomies 5 | . . . . . . . . 1 . . . . . . . . . . . . . . 1 . . 3 Intel | -11 -10 -10 -10 -9 -8 -8 -8 -8 -7 -7 -7 -7 -6 -6 -5 -5 -5 -5 -4 -4 -4 -4 -4 -4 -4 -4 ------- Run | Jun Mat Min Exi Min Mat Gar Mat Sto Fac Gar Fac Gar Fac Gar Fac Upp Upp Zhi Pro Fac Was Fac Ext Cet Arc Hub Robot Analysis Total 7 | . 1 . . . 1 . . . 1 . . . . . . . . 4 . . . . . . . . Derelict Logs Recovered 6 | . . . . 1 . . . . . . . . . . . 2 1 . 2 . . . . . . . Drone Launches 7 | . . . . . . . . . . . . . . . 2 3 . . . . . . . . . 2 Drone Recoveries 3 | . . . . . . . . . . . . . . . . 1 . . . . . . . . . 2 Exploration | -11 -10 -10 -10 -9 -8 -8 -8 -8 -7 -7 -7 -7 -6 -6 -5 -5 -5 -5 -4 -4 -4 -4 -4 -4 -4 -4 ------------- Run | Jun Mat Min Exi Min Mat Gar Mat Sto Fac Gar Fac Gar Fac Gar Fac Upp Upp Zhi Pro Fac Was Fac Ext Cet Arc Hub Turns Passed 35300 | 48 483 205 308 195 1648 2883 459 790 2813 554 1364 1996 1682 2059 2711 2022 1069 357 1137 2303 397 2813 1173 362 1211 2258 Spaces Moved 29535 | 42 406 228 340 198 969 1715 221 420 3279 350 1487 1627 1533 1358 2961 1993 795 255 795 2649 406 2704 1207 195 451 951 Core 5 | 5 . . . . . . . . . . . . . . . . . . . . . . . . . . Treads 2938 | . . . . . . 1086 221 188 . . . 16 . . . . . . . . . . . 160 451 816 Legs . | . . . . . . . . . . . . . . . . . . . . . . . . . . . Wheels 4300 | 37 406 228 340 198 969 629 . . . . 160 866 337 . . . . . . . . . . . . 130 Hover 21988 | . . . . . . . . 232 3279 350 1327 441 1196 1358 2961 1993 795 255 795 2649 406 2704 1207 35 . 5 Flight 304 | . . . . . . . . . . . . 304 . . . . . . . . . . . . . . Fastest Speed 26 | 50 80 90 90 90 85 85 165 43 43 43 43 26 48 48 48 52 119 59 119 46 46 44 42 42 160 121 Average Speed 82 | 78 80 90 90 90 85 136 165 119 65 85 54 77 78 94 57 70 119 112 128 55 75 60 69 143 160 161 Slowest Speed 260 | 100 90 90 90 90 86 240 165 165 171 103 125 240 260 156 107 119 119 129 136 127 105 111 115 160 160 210 Overloaded Moves . | . . . . . . . . . . . . . . . . . . . . . . . . . . . Propulsion Burnouts . | . . . . . . . . . . . . . . . . . . . . . . . . . . . Robots Hopped . | . . . . . . . . . . . . . . . . . . . . . . . . . . . Cave-ins Triggered 2 | . . . . . . . . 1 . . . . . . . . . . . . . . . . . 1 Exploration Rate (%) 63 | 4 80 63 71 51 51 81 13 72 61 42 30 84 26 87 67 80 90 62 76 47 97 43 70 79 95 79 Regions Visited 26 Branch Regions 12 Pre-discovered Areas 4 | . . . . 1 . . . . . . . . . . . . . 3 . . . . . . . . Known Exits Taken 7 | . . . . . 1 . . . 1 . 1 . 1 . 1 . . . 1 . . 1 . . . . Unknown Exits Taken 13 | 1 1 1 1 1 . . 1 1 . . . . . . . 1 1 1 . . . . 1 1 1 . Scrap Searched 10 | . . 1 . 1 . . . . . . . . . . . 6 1 . 1 . . . . . . . Spaces Dug 282 | . 6 . . . 20 7 . 2 40 6 16 5 9 . 27 32 28 . . 25 . 26 26 . . 7 Terrain Destroyed 1035 | . 16 . . 24 53 29 . 35 40 123 16 80 9 . 79 107 141 . 24 62 . 45 75 1 4 72 Melee 152 | . . . . . 20 . . 2 26 6 15 2 9 . 13 11 . . . 23 . 22 3 . . . Projectile 140 | . . . . . 3 1 . . . 6 1 1 . . 31 21 2 . 10 3 . 23 1 1 4 32 AOE 743 | . 16 . . 24 30 28 . 33 14 111 . 77 . . 35 75 139 . 14 36 . . 71 . . 40 Terrain Rammed . | . . . . . . . . . . . . . . . . . . . . . . . . . . . Walls Destroyed . | . . . . . . . . . . . . . . . . . . . . . . . . . . . Machines Disabled . | . . . . . . . . . . . . . . . . . . . . . . . . . . . Actions | -11 -10 -10 -10 -9 -8 -8 -8 -8 -7 -7 -7 -7 -6 -6 -5 -5 -5 -5 -4 -4 -4 -4 -4 -4 -4 -4 --------- Run | Jun Mat Min Exi Min Mat Gar Mat Sto Fac Gar Fac Gar Fac Gar Fac Upp Upp Zhi Pro Fac Was Fac Ext Cet Arc Hub Total 38425 | 53 505 227 342 208 1735 2113 282 665 3827 536 1958 2206 1959 1887 3741 2506 883 300 863 3382 466 3699 1481 259 876 1466 Wait 5466 | . 40 . 1 . 655 240 38 177 366 107 380 267 304 236 375 299 22 1 6 499 7 708 100 4 323 311 Move 29509 | 41 405 227 339 197 968 1713 220 419 3278 348 1487 1625 1533 1357 2960 1992 794 254 794 2649 405 2703 1206 194 450 951 Hop . | . . . . . . . . . . . . . . . . . . . . . . . . . . . Pick Up 245 | 6 7 . 1 1 14 6 1 7 19 . 8 18 17 16 31 25 5 3 10 11 7 13 4 4 1 10 Fast Attach 360 | 6 2 . . 1 8 10 . 12 16 . 14 41 15 24 49 16 10 9 3 36 5 24 13 7 18 21 Attach 114 | . 1 . . . 3 2 . 3 5 . 1 8 3 10 15 15 3 4 7 4 1 6 2 3 1 17 Detach 125 | . 1 . . . 1 2 . 1 5 . . 19 7 14 20 9 1 4 1 11 2 8 2 7 6 4 Swap 282 | . 6 . . 2 12 13 . 8 13 8 5 31 16 8 34 12 6 1 9 19 6 21 24 6 5 17 Drop 473 | . 7 . 1 2 20 16 1 13 32 1 17 40 25 23 60 36 14 8 7 36 15 32 18 15 16 18 Fire 921 | . 36 . . 3 22 81 22 16 3 29 5 80 9 135 111 75 19 16 23 11 6 37 26 19 35 102 Melee 631 | . . . . 2 32 . . 9 73 9 41 24 27 23 86 19 9 . 3 76 12 100 51 . 21 14 Ram 1 | . . . . . . . . . . . . . . . . . . . . . . . . . . 1 Kick . | . . . . . . . . . . . . . . . . . . . . . . . . . . . Crush . | . . . . . . . . . . . . . . . . . . . . . . . . . . . Escape Stasis 233 | . . . . . . 30 . . 13 26 . 50 . 39 . . . . . . . 40 35 . . . Rewire 12 | . . . . . . . . . 4 . . 3 3 2 . . . . . . . . . . . . Trap 53 | . . . . . . . . . . 8 . . . . . 8 . . . 30 . 7 . . . . Miscellaneous . | . . . . . . . . . . . . . . . . . . . . . . . . . . . Route ------- -11/Junkyard -10/Materials (discovered 3 exits: [*Mat x2] / [*Min]) -10/Mines -10/Exiles -9/Mines -8/Materials (discovered 4 exits: *Fac / *Sto x2 / Gar) -8/Garrison (discovered 3 exits: *Mat x3) -8/Materials -8/Storage (discovered 2 exits: *Fac / Gar) -7/Factory (discovered 4 exits: *Fac / *Low x2 / Gar) -7/Garrison -7/Factory (discovered 2 exits: *Low / Gar) -7/Garrison (discovered 3 exits: *Fac x3) -6/Factory (discovered 4 exits: *Fac x2 / [*Low] / Gar) -6/Garrison (discovered 3 exits: *Fac x3) -5/Factory (discovered 5 exits: *Fac x2 / *Upp x2 / Gar) -5/Upper Caves -5/Upper Caves (discovered 2 exits: Fac / *Zhi) -5/Zhirov -4/Proximity Caves -4/Factory (discovered 6 exits: *Res x2 / *Upp x2 / *Ext x2) -4/Waste -4/Factory (discovered 5 exits: *Res x2 / *Upp x2 / *Ext) -4/Extension (discovered 3 exits: *Res x2 / *Cet) -4/Cetus (discovered 2 exits: *Res / *Arc) -4/Archives (discovered 3 exits: *Res / *Hub x2) -4/Hub_04(d) (discovered 2 exits: *Res x2) History --------- Turn | Location | Event 10 | -11/Junkyard | Discovered new exit (range 16) 49 | -11/Junkyard | Entered Materials 115 | -10/Materials | Core integrity fell below 50% 151 | -10/Materials | Discovered new exit (range 16) 200 | -10/Materials | Discovered new exit (range 10) 310 | -10/Materials | Build established: Mutant 347 | -10/Materials | Discovered new exit (range 4) 497 | -10/Materials | Central database locked down 532 | -10/Materials | Entered Mines 533 | -10/Mines | Assembled infested the area 733 | -10/Mines | Deemed a non-threat by the Exiles lab entrance 733 | -10/Mines | Discovered new exit (range 5) 737 | -10/Mines | Entered Exiles 759 | -10/Exiles | Met 8R-AWN 774 | -10/Exiles | Met EX-HEX 819 | -10/Exiles | Met EX-DEC 910 | -10/Exiles | Met EX-BIN 928 | -10/Exiles | Aligned with FarCom system 929 | -10/Exiles | Given EX-Vault access code 950 | -10/Exiles | Opened EX-Vault 957 | -10/Exiles | Found Field Lobotomy Kit 978 | -10/Exiles | Warned to stay clear of 0b10 Research branches 1034 | -10/Exiles | Discovered new exit (range 14) 1045 | -10/Exiles | Left Exiles lab with Field Lobotomy Kit 1045 | -10/Exiles | Entered Mines 1156 | -9/Mines | Learned location of Recycling (-8) 1196 | -9/Mines | A weapon hastily lodged in a ceiling crevice suddenly fell to the ground 1210 | -9/Mines | Discovered new exit (range 15) 1240 | -9/Mines | Entered Materials 1240 | -8/Materials | Evolved 4 slots: Propulsion x2, Utility x2 1989 | -8/Materials | Garrison activated, responded to threat 2010 | -8/Materials | Identified exit to Garrison 2018 | -8/Materials | Destroyed 8 combat bots 2228 | -8/Materials | Discovered new exit (range 8) 2411 | -8/Materials | Discovered new exit (range 15) 2708 | -8/Materials | Discovered new exit (range 4) 2888 | -8/Materials | Entered Garrison 3044 | -8/Garrison | Build established: Scavenger-Mutant 3062 | -8/Garrison | Triggered checkpoint 3112 | -8/Garrison | Triggered checkpoint 3507 | -8/Garrison | Discovered new exit (range 14) 3655 | -8/Garrison | Discovered new exit (range 14) 3890 | -8/Garrison | Discovered new exit (range 10) 4268 | -8/Garrison | Triggered checkpoint 4628 | -8/Garrison | Triggered checkpoint 4668 | -8/Garrison | Garrison Relay disabled 4892 | -8/Garrison | Rescued a captive Derelict 4894 | -8/Garrison | Rescued a captive Derelict 5134 | -8/Garrison | Garrison Relay disabled 5275 | -8/Garrison | Triggered checkpoint 5370 | -8/Garrison | Installed Relay Interface Framework 5771 | -8/Garrison | Entered Materials 5802 | -8/Materials | Build established: Mutant 6143 | -8/Materials | Discovered new exit (range 15) 6230 | -8/Materials | Entered Storage 6231 | -8/Storage | Core integrity fell below 50% 6752 | -8/Storage | Identified exit to Garrison 6846 | -8/Storage | Crushed by falling debris 6846 | -8/Storage | System corruption reached 10% 6866 | -8/Storage | Assimilated H-55 Commando with FLK Orb 6899 | -8/Storage | Lost 4 parts (1n2u1w) 6961 | -8/Storage | Discovered new exit (range 8) 7020 | -8/Storage | Entered Factory 7020 | -7/Factory | Accompanied by 1 ally 7020 | -7/Factory | Evolved 2 slots: Utility x2 7112 | -7/Factory | Identified exit to Garrison 7129 | -7/Factory | Identified exit to Lower Caves 7336 | -7/Factory | Repaired Aerolev Unit 7382 | -7/Factory | Build established: Infiltrator-Mutant 7763 | -7/Factory | Discovered new exit (range 13) 7917 | -7/Factory | Cargo convoy interrupted 8126 | -7/Factory | Garrison activated, responded to threat 9833 | -7/Factory | Entered Garrison 9833 | -7/Garrison | Accompanied by 2 allies 9848 | -7/Garrison | Phase Generator disabled 10057 | -7/Garrison | Triggered checkpoint 10365 | -7/Garrison | Expanded RIF knowledge: Signal Jamming 10383 | -7/Garrison | Discovered new exit (range 10) 10387 | -7/Garrison | Entered Factory 10492 | -7/Factory | Discovered exit to Lower Caves (range 5) 10537 | -7/Factory | Identified exit to DSF 10854 | -7/Factory | Repaired Gravmag System 11117 | -7/Factory | Fabricated Myomer Leg? 11750 | -7/Factory | Identified exit to Garrison 11751 | -7/Factory | Entered Garrison 11923 | -7/Garrison | Garrison Relay disabled 12130 | -7/Garrison | Triggered checkpoint 12179 | -7/Garrison | Expanded RIF knowledge: Threat Obfuscation 12379 | -7/Garrison | Core integrity fell below 50% 12407 | -7/Garrison | Lost 7 parts (3n3u1w) 12478 | -7/Garrison | Triggered checkpoint 12585 | -7/Garrison | Discovered new exit (range 11) 12592 | -7/Garrison | Discovered new exit (range 11) 12592 | -7/Garrison | Discovered new exit (range 62) 12592 | -7/Garrison | Discovered new exit (range 77) 12610 | -7/Garrison | Triggered checkpoint 12646 | -7/Garrison | Garrison Relay disabled 12720 | -7/Garrison | Triggered checkpoint 12755 | -7/Garrison | Triggered checkpoint 13144 | -7/Garrison | Build established: Scavenger-Mutant 13377 | -7/Garrison | Expanded RIF knowledge: Hotswap 13409 | -7/Garrison | Garrison Relay disabled 13438 | -7/Garrison | Triggered checkpoint 13505 | -7/Garrison | Lost 3 parts (2n1w) 13747 | -7/Garrison | Entered Factory 13747 | -6/Factory | Evolved 2 slots: Utility x2 14082 | -6/Factory | Discovered new exit (range 18) 14183 | -6/Factory | Discovered new exit (range 5) 14246 | -6/Factory | Discovered new exit (range 16) 14356 | -6/Factory | Fabricated Remote Datajack (x1) 14586 | -6/Factory | Build established: Bothacker-Mutant 15429 | -6/Factory | Identified exit to Garrison 15429 | -6/Factory | Entered Garrison 15429 | -6/Garrison | Accompanied by 4 allies 15514 | -6/Garrison | Build established: Commander-Mutant 15582 | -6/Garrison | Triggered checkpoint 15585 | -6/Garrison | Assembled breached garrison interior 15672 | -6/Garrison | Garrison Relay disabled 15791 | -6/Garrison | Destroyed 8 combat bots 15794 | -6/Garrison | Lost 6 parts (3n3u) 16081 | -6/Garrison | Destroyed 8 combat bots 16094 | -6/Garrison | Build established: Bothacker-Mutant 16133 | -6/Garrison | System corruption reached 10% 16418 | -6/Garrison | Destroyed 8 combat bots 16434 | -6/Garrison | Expanded RIF knowledge: Autoassimilate 16465 | -6/Garrison | Discovered new exit (range 9) 16473 | -6/Garrison | Found embedded Infiltrators 16504 | -6/Garrison | Garrison Relay disabled 16617 | -6/Garrison | Learned Factory security intel 16650 | -6/Garrison | Discovered new exit (range 9) 16774 | -6/Garrison | Discovered new exit (range 10) 16859 | -6/Garrison | Garrison Relay disabled 17038 | -6/Garrison | Spotted B-75 Beast 17488 | -6/Garrison | Entered Factory 17488 | -5/Factory | Accompanied by 2 allies 17488 | -5/Factory | Evolved 2 slots: Propulsion x2 17560 | -5/Factory | Discovered new exit (range 6) 17684 | -5/Factory | Build established: Botlord-Mutant 17788 | -5/Factory | First assault squad dispatched 18183 | -5/Factory | Discovered new exit (range 8) 18207 | -5/Factory | Identified exit to Upper Caves 18340 | -5/Factory | Build established: Bothacker-Mutant 18570 | -5/Factory | Fabricated B-48 Gladiator? 18682 | -5/Factory | Discovered new exit (range 14) 18688 | -5/Factory | Identified exit to Factory 18775 | -5/Factory | Repaired Gravmag Array 19116 | -5/Factory | Build established: Mutant 19124 | -5/Factory | Discovered exit to Factory (range 11) 19604 | -5/Factory | Build established: Infiltrator-Mutant 19648 | -5/Factory | Fabricated Antigrav Array? 19997 | -5/Factory | Build established: Scavenger-Mutant 20117 | -5/Factory | Identified exit to Garrison 20199 | -5/Factory | Entered Upper Caves 20205 | -5/Upper Caves | Learned 8 Factory zone layouts 20477 | -5/Upper Caves | Build established: Mutant 20519 | -5/Upper Caves | Attracted the attention of an 0b10 checkpoint 20634 | -5/Upper Caves | Learned Factory stockpile data 20668 | -5/Upper Caves | Discovered new exit (range 5) 20894 | -5/Upper Caves | Attracted the attention of an 0b10 base 21112 | -5/Upper Caves | Build established: Scavenger-Mutant 21837 | -5/Upper Caves | Core integrity fell below 50% 22221 | -5/Upper Caves | Entered another Upper Caves area 22284 | -5/Upper Caves | Discovered exit to Factory (range 11) 22493 | -5/Upper Caves | Build established: Mutant 22655 | -5/Upper Caves | Attacked by a delusional Derelict stockpiling parts 22925 | -5/Upper Caves | Ambushed by wild Derelicts 23236 | -5/Upper Caves | Discovered new exit (range 9) 23290 | -5/Upper Caves | Entered Zhirov 23291 | -5/Zhirov | Discovered new exit (range 3) 23313 | -5/Zhirov | Met Zhirov 23360 | -5/Zhirov | Learned location of Quarantine (-2) 23360 | -5/Zhirov | Learned location of Testing (-3) 23360 | -5/Zhirov | Learned location of Command (-1) 23368 | -5/Zhirov | Zhirov requested help retrieving the SGEMP Prototype 23538 | -5/Zhirov | Found Alien Artifact 23538 | -5/Zhirov | Identified Integrated Reactor 23538 | -5/Zhirov | Installed Integrated Reactor, increased core energy generation (+10) 23564 | -5/Zhirov | Found Alien Artifact 23647 | -5/Zhirov | Entered Proximity Caves 23750 | -4/Proximity Caves | Attracted the attention of an 0b10 checkpoint 23981 | -4/Proximity Caves | Learned Research terminal intel 24210 | -4/Proximity Caves | Lost 4 parts (1n3u) 24520 | -4/Proximity Caves | Discovered exit to Factory (range 11) 24558 | -4/Proximity Caves | Learned Research emergency access door positions 24784 | -4/Proximity Caves | Entered Factory 24784 | -4/Factory | Evolved 2 slots: Propulsion x2 24785 | -4/Factory | Identified exit to Upper Caves 24785 | -4/Factory | Identified exit to Extension 24785 | -4/Factory | Identified exit to Research 25003 | -4/Factory | Found Unknown Device 25003 | -4/Factory | Identified Quantum Capacitor 25183 | -4/Factory | Build established: Derelict-Mutant 25434 | -4/Factory | Repaired Gravmag Array? 25493 | -4/Factory | Build established: Mutant 25603 | -4/Factory | Repaired Antigrav Array? 25677 | -4/Factory | P-70 Sage assimilated allied Technician 7a 25729 | -4/Factory | Discovered exit to Research (range 5) 25882 | -4/Factory | Repaired HERF Cannon 26091 | -4/Factory | Repaired Broken Cmb. Gravmag System 26163 | -4/Factory | Repaired Antigrav Array 26606 | -4/Factory | Build established: Scout 27087 | -4/Factory | Sucked down chute 27087 | -4/Factory | Entered Waste 27088 | -4/Waste | Joined by Warlord forces that had cleared the area 27167 | -4/Waste | Discovered new exit (range 11) 27215 | -4/Waste | Found Prototype Reactor 27215 | -4/Waste | Identified Zero-point Reactor 27230 | -4/Waste | Found Damper Plating 27378 | -4/Waste | Found Damper Plating 27484 | -4/Waste | Entered Factory 27484 | -4/Factory | Accompanied by 18 allies 27517 | -4/Factory | Build established: Mutant 27615 | -4/Factory | Discovered exit to Research (range 9) 28295 | -4/Factory | Discovered exit to Research (range 9) 28613 | -4/Factory | Discovered exit to Upper Caves (range 19) 28641 | -4/Factory | Found Prototype Slashing Weapon 28641 | -4/Factory | Identified Vibroblade 28644 | -4/Factory | Found Vibroblade 28722 | -4/Factory | Build established: Scavenger-Scout 28746 | -4/Factory | Found Faulty Vibroblade 28749 | -4/Factory | Found Vibroblade 28751 | -4/Factory | Found Vibroblade 28776 | -4/Factory | Spotted B-86 Titan 28912 | -4/Factory | Found Prototype Processor 28912 | -4/Factory | Identified Exp. Signal Interpreter 28964 | -4/Factory | Repaired Gravmag Array 29197 | -4/Factory | Build established: Mutant 29734 | -4/Factory | Search patrols dispatched 30229 | -4/Factory | Discovered exit to Upper Caves (range 14) 30234 | -4/Factory | Search patrols dispatched 30293 | -4/Factory | Discovered exit to Extension (range 10) 30297 | -4/Factory | Entered Extension 30468 | -4/Extension | Disrupted transfer network 30626 | -4/Extension | Rescued a captive Derelict 30758 | -4/Extension | Rescued A7 30795 | -4/Extension | Build established: Scavenger-Mutant 31047 | -4/Extension | First assault squad dispatched 31136 | -4/Extension | Spotted B-86 Titan 31138 | -4/Extension | Assimilated B-86 Titan with FLK Orb 31171 | -4/Extension | Spotted B-86 Titan 31183 | -4/Extension | Allies destroyed B-86 Titan 31283 | -4/Extension | Discovered exit to Research (range 3) 31367 | -4/Extension | Discovered new exit (range 16) 31368 | -4/Extension | Discovered exit to Research (range 15) 31470 | -4/Extension | Entered Cetus 31470 | -4/Cetus | Accompanied by 3 allies (A7) 31475 | -4/Cetus | Acquired a Cetus Manufacturing Module code from A7 31490 | -4/Cetus | Destroyed Cetus Guard 31494 | -4/Cetus | Spotted Cetus Guard 31495 | -4/Cetus | Spotted Cetus Guard 31495 | -4/Cetus | Destroyed Cetus Guard 31495 | -4/Cetus | Destroyed Cetus Guard 31496 | -4/Cetus | Spotted Cetus Guard 31501 | -4/Cetus | Destroyed Cetus Guard 31572 | -4/Cetus | Cetus Manufacturing Module disabled 31638 | -4/Cetus | Failed to start Cetus Manufacturing Module 31658 | -4/Cetus | Escorted A7 to Cetus Mainframe 31678 | -4/Cetus | Discovered new exit (range 15) 31704 | -4/Cetus | Destroyed Cetus Guard 31710 | -4/Cetus | Destroyed Cetus Guard 31716 | -4/Cetus | Destroyed Cetus Guard 31722 | -4/Cetus | Spotted Cetus Guard 31724 | -4/Cetus | Destroyed Cetus Guard 31735 | -4/Cetus | Discovered exit to Research (range 16) 31745 | -4/Cetus | Met Revision 17 31832 | -4/Cetus | Entered Archives 31832 | -4/Archives | Accompanied by 2 allies (A7) 31837 | -4/Archives | Received a hacking code to weaken MAIN.C 32185 | -4/Archives | Discovered new exit (range 14) 32206 | -4/Archives | Discovered new exit (range 16) 32315 | -4/Archives | Unable to access archive contents 32333 | -4/Archives | Unable to access archive contents 32349 | -4/Archives | Unable to access archive contents 32365 | -4/Archives | Unable to access archive contents 32406 | -4/Archives | Unable to access archive contents 32505 | -4/Archives | Discovered exit to Research (range 15) 32676 | -4/Archives | Build established: Wizard-Mutant 33043 | -4/Archives | Entered Hub_04(d) 33106 | -4/Hub_04(d) | Build established: Scavenger-Mutant 33487 | -4/Hub_04(d) | Discovered exit to Research (range 9) 34078 | -4/Hub_04(d) | Discovered exit to Research (range 23) 34101 | -4/Hub_04(d) | Assimilated H-71 Marshal with FLK Orb 34140 | -4/Hub_04(d) | Lost 3 parts (1p1n1u) 34149 | -4/Hub_04(d) | Crushed by falling debris 34490 | -4/Hub_04(d) | Garrison activated, responded to threat 34568 | -4/Hub_04(d) | System corruption reached 10% 34598 | -4/Hub_04(d) | Lost 3 parts (2n1u) 34645 | -4/Hub_04(d) | Network Hub disabled 34688 | -4/Hub_04(d) | Spotted Lightning 35146 | -4/Hub_04(d) | Spotted Lightning 35148 | -4/Hub_04(d) | Spotted Lightning 35151 | -4/Hub_04(d) | Spotted Lightning 35216 | -4/Hub_04(d) | Core integrity fell below 50% 35250 | -4/Hub_04(d) | Lost 9 parts (1p4n4u) 35268 | -4/Hub_04(d) | System corruption reached 30% 35285 | -4/Hub_04(d) | Network Hub disabled 35286 | -4/Hub_04(d) | Core integrity fell below 20% 35296 | -4/Hub_04(d) | Assimilated Lightning with FLK Orb 35299 | -4/Hub_04(d) | Assimilated P-70 Sage with FLK Orb 35301 | -4/Hub_04(d) | Destroyed by P-70 Sage with Tesla Rifle Last Messages --------------- 35282_ Arm. Medium Treads destroyed. 35284_ Adv. Variable Charge Gun destroyed. 35285_ Penetrated by EMDS Slug. 35285_ ALERT: Network intrusion management efficiency at 70%. 35285_ Network Hub explodes. 35285_ Y-64 Sentinel destroyed. 35285_ Penetrated by EMDS Slug. 35285_ Centrium Wheel destroyed. 35286_ Y-64 Sentinel system terminally corrupted. 35287_ P-70 Sage resets P-70 Sage, system corruption cleaned. 35287_ Penetrated by EMDS Slug. 35288_ System corrupted: Heat flow error (+152). 35289_ Penetrated by EMDS Slug. 35295_ Imp. Antigrav System destroyed. 35295_ Penetrated by EMDS Slug. 35296_ Lightning assimilated. 35296_ EMDS Slug penetrates Lightning. 35299_ Field Lobotomy Kit expended. 35299_ P-70 Sage assimilated. [Achievement: Tester] Map ----- +----------------------------------------------------+ | ????????????????????????????????????? | | ????????????????????????????????????? | | ????????????????????????????????????? | | ????????????????????????????????????? | | ????????????????????????????????????? | | ????????????????????????????????????? | | ????????????????????????????????????? | | ????????????????????????????????????? | | ??????????????? ???##+#?????????? | | ????????????? ?# ?????????? | | ??????????; " ?????????? | | ????????# ; " #?????????? | | ??????# ; # #????###??? | | ??????# ; # #???! ]#??? | | ????### ;;;;;;;;;;;;;## #?? / ?? | | ?#### # ; ; # #?? " #??? | | ##; ;;;;;; ; # #? " #??? | | #; ; ; # # " #??? | | ; ; ;;;; " #??? | | ; / ; i " #??? | | #; = ; hph = !%= " #??? | | ; ; ;;;;%;" " #??? | | ; ; ; # #? #??? | | ; ; ; # #?? #?? | | ; ; p ; # #?? " " ##?? | | #; ; @ ; # #???" " #??? | | ; ;;;;;;;;; ;; # #??? #??? | | #; / ; ; ; # #????####??? | | #; # ;h; # #??????????? | | #; # #### ; ### #??????????? | | #; !### ##??# ; #?# #??????????? | | ?# #?###???# "#### #??????????? | | ?; #???????# #??????????? | | # """" #??######""####+#??????????? | | # """ #"##" #??????????? | | ## " "" " / """ #??????????? | | # ! ##### "" """ #??????????? | | ## !#???# "T """ #??????????? | | ?####"#/##???# "" """ #??????????? | | ????### #???# "" #??????????? | | ??????#[#???## ! #??????????? | | ???#### ####################????????? | | ???# ????????? | | ???# ##"##########???# #?????????? | | ???# ################# #???????### | | ???# + # #?????? | | ???# # ""G"" # #?????? | | ???# # " " # ####??????? | | ???# # " " + ######## | | ???# # # ##### # ! | +----------------------------------------------------+ Best States ------------- Heat Dissipation 100 Coolant Potential 80 Energy Generation 43 Energy Capacity 1100 Matter Stores 300 Matter Capacity 300 Sight Range 20 Terrain Scan Range 16 Terrain Scan Density 210 ECM Strength 2 Jamming Range 12 Power Amplification 30 Additional Mass Support 9 EM Shielding 2 Armor Coverage 1825 Resistance: KI 25 Resistance: EM 90 Core Shielding 20 Propulsion Shielding 33 Utility Shielding 66 Weapon Shielding 90 Weapon Cycling 20 Melee Speed Boost 30 Evasion (%) 64 Targeting Accuracy 6 Melee Accuracy 6 Launcher Accuracy 20 Core Analysis 6 Recoil Reduction 8 Energy Filtering 30 Particle Charging 30 Kinecelleration 30 Salvage Targeting 1 Offensive Hacking 24 Defensive Hacking 48 Relay Coupler Types 4 Relay Coupler Value 111 Authchip Count 1 Item Schematics ----------------- Imp. Hover Unit | -8/Materials | Scanalyzed Imp. Datajack | -7/Factory | Scanalyzed Gravmag System | -7/Factory | Hacked Gauss Cannon | -7/Factory | Scanalyzed Remote Datajack | -7/Factory | Scanalyzed Neutrino Core | -7/Factory | Scanalyzed Adv. Remote Datajack | -5/Factory | Scanalyzed Antigrav Array | -5/Factory | Scanalyzed Assault Drone Bay | -5/Zhirov | Free Exp. Heat Sink | -5/Zhirov | Free Exp. Optical Array | -5/Zhirov | Free Imp. Arc Thrower | -5/Zhirov | Free Cmb. Gravmag System | -4/Factory | Scanalyzed Robot Schematics ------------------ G-47 Trooper | -7/Factory | Hacked B-48 Gladiator | -7/Factory | Hacked Fabricated ------------ Myomer Leg | x2 | -7/Factory | Preloaded Remote Datajack | x1 | -6/Factory | Authchip B-48 Gladiator | x3 | -5/Factory | Authchip Antigrav Array | x1 | -5/Factory | Authchip Alien Tech Used ----------------- Integrated Reactor Achievements -------------- Alien Tech Assimilation Complete Beloved Factory Defaults Generalissimo Main Advantage No Signal Omniscient Cartographer Project G-00 Revising The Future Tester The Science Guy Turtlemind We Are Legion Challenges ------------ None Game ------ Seed FlightMatterStorage Manual? 0 Play Time 09:55:04 Cumulative 50.0 hours Start 2023.11.06 @ 19:35:03 End 2023.11.30 @ 00:50:45 Sessions 27 Manual Loads 0 Difficulty Rogue Special Mode None Game No. 23 Rogue 23 Adventurer 0 Explorer 0 Win Type - Total 0 Types 0/0/0/0/0/0/0/0/0 Lore% 45 Gallery% 50 Achievement% 45 Wizard Run 0 Options --------- ASCII 0 Keyboard 1 Movement Numpad Keybinds 0 Fullscreen 1 Font 18/SmallcapsGlow Map View 76x50 Tactical HUD 1 Map Filters NONE Filters NONE Steam 1 RUN: 2b253696-a45b-4ba6-b428-e87842c9148e